[Event "Titled Tuesday Blitz August 08 Early 2023"]
[White "Kula, Robert"]
[Black "Stangl, Anita, Dr."]
[WhiteFideId "1101218"]
[BlackFideId "4608801"]
[WhiteElo "2220"]
[BlackElo "2131"]
[Result "1-0"]
[Round "8"]
[TimeControl "180+1"]
[Date "2023.08.08"]
[WhiteClock "0:00:16"]
[BlackClock "0:00:18"]
[Board "204"]

1. d4 {[%clk 0:03:00]}  e6 {[%clk 0:02:56]} 2. c4 {[%clk 0:03:01]}  d5 {[%clk 0:02:56]} 3. Nc3 {[%clk 0:03:01]}  c6 {[%clk 0:02:54]} 4. Nf3 {[%clk 0:03:00]}  dxc4 {[%clk 0:02:53]} 5. e3 {[%clk 0:02:57]}  b5 {[%clk 0:02:52]} 6. a4 {[%clk 0:02:57]}  Bb4 {[%clk 0:02:52]} 7. Bd2 {[%clk 0:02:55]}  a5 {[%clk 0:02:52]} 8. axb5 {[%clk 0:02:54]}  Bxc3 {[%clk 0:02:52]} 9. Bxc3 {[%clk 0:02:52]}  cxb5 {[%clk 0:02:52]} 10. d5 {[%clk 0:02:33]}  Nf6 {[%clk 0:02:51]} 11. Nd4 {[%clk 0:02:24]}  exd5 {[%clk 0:02:41]} 12. Nxb5 {[%clk 0:02:22]}  O-O {[%clk 0:02:40]} 13. Be2 {[%clk 0:02:18]}  Nc6 {[%clk 0:02:38]} 14. O-O {[%clk 0:02:17]}  Be6 {[%clk 0:02:34]} 15. Nd4 {[%clk 0:02:15]}  Nb4 {[%clk 0:02:29]} 16. Bf3 {[%clk 0:02:04]}  Re8 {[%clk 0:02:22]} 17. h3 {[%clk 0:01:59]}  Ne4 {[%clk 0:02:18]} 18. Bxe4 {[%clk 0:01:44]}  dxe4 {[%clk 0:02:15]} 19. Qh5 {[%clk 0:01:42]}  Qd5 {[%clk 0:02:08]} 20. Qh4 {[%clk 0:01:35]}  f6 {[%clk 0:01:49]} 21. Qg3 {[%clk 0:01:30]}  Bf7 {[%clk 0:01:44]} 22. Rfd1 {[%clk 0:01:11]}  Nd3 {[%clk 0:01:43]} 23. Ne2 {[%clk 0:00:52]}  Re6 {[%clk 0:01:34]} 24. Nf4 {[%clk 0:00:50]}  Nxf4 {[%clk 0:01:27]} 25. Rxd5 {[%clk 0:00:28]}  Ne2+ {[%clk 0:01:25]} 26. Kh2 {[%clk 0:00:28]}  Nxg3 {[%clk 0:01:26]} 27. Kxg3 {[%clk 0:00:29]}  a4 {[%clk 0:01:04]} 28. Rc5 {[%clk 0:00:28]}  Rd6 {[%clk 0:01:03]} 29. Rc7 {[%clk 0:00:27]}  g6 {[%clk 0:00:59]} 30. h4 {[%clk 0:00:27]}  f5 {[%clk 0:00:59]} 31. Kf4 {[%clk 0:00:27]}  Kf8 {[%clk 0:00:45]} 32. g4 {[%clk 0:00:25]}  fxg4 {[%clk 0:00:36]} 33. Kxg4 {[%clk 0:00:24]}  Be6+ {[%clk 0:00:36]} 34. Kg3 {[%clk 0:00:24]}  h5 {[%clk 0:00:33]} 35. Rh7 {[%clk 0:00:22]}  Raa6 {[%clk 0:00:30]} 36. Kh2 {[%clk 0:00:22]}  Bf5 {[%clk 0:00:29]} 37. Rg1 {[%clk 0:00:21]}  a3 {[%clk 0:00:26]} 38. bxa3 {[%clk 0:00:20]}  Rdb6 {[%clk 0:00:23]} 39. Bb4+ {[%clk 0:00:19]}  Kg8 {[%clk 0:00:20]} 40. Rc7 {[%clk 0:00:19]}  Rc6 {[%clk 0:00:18]} 41. Rb7 {[%clk 0:00:18]}  c3 {[%clk 0:00:18]} 42. Rd1 {[%clk 0:00:17]}  c2 {[%clk 0:00:18]} 43. Rd8# {[%clk 0:00:16]} 1-0


[Site "https://www.chess.com"]

[Event "Titled Tuesday Blitz August 08 Early 2023"]
[White "campochess"]
[Black "Nikulina, Alena"]
[BlackFideId "4172051"]
[WhiteElo "2205"]
[BlackElo "2047"]
[Result "0-1"]
[Round "8"]
[TimeControl "180+1"]
[Date "2023.08.08"]
[WhiteClock "0:00:24"]
[BlackClock "0:00:05"]
[Board "205"]

1. d4 {[%clk 0:02:59]}  d5 {[%clk 0:02:59]} 2. e4 {[%clk 0:02:58]}  dxe4 {[%clk 0:02:58]} 3. Nc3 {[%clk 0:02:58]}  Nf6 {[%clk 0:02:57]} 4. Bg5 {[%clk 0:02:58]}  e6 {[%clk 0:02:57]} 5. Bxf6 {[%clk 0:02:54]}  Qxf6 {[%clk 0:02:53]} 6. Nxe4 {[%clk 0:02:54]}  Qd8 {[%clk 0:02:52]} 7. Nf3 {[%clk 0:02:53]}  b6 {[%clk 0:02:38]} 8. Ne5 {[%clk 0:02:51]}  Bd6 {[%clk 0:02:29]} 9. Qf3 {[%clk 0:02:47]}  Bxe5 {[%clk 0:02:26]} 10. dxe5 {[%clk 0:02:45]}  Qd5 {[%clk 0:02:22]} 11. c4 {[%clk 0:02:30]}  Qxe5 {[%clk 0:02:21]} 12. O-O-O {[%clk 0:02:30]}  O-O {[%clk 0:01:41]} 13. Nf6+ {[%clk 0:02:24]}  Qxf6 {[%clk 0:01:42]} 14. Qxa8 {[%clk 0:02:23]}  Na6 {[%clk 0:01:21]} 15. Qe4 {[%clk 0:02:20]}  Qxf2 {[%clk 0:01:11]} 16. Bd3 {[%clk 0:02:18]}  f5 {[%clk 0:01:08]} 17. Qe5 {[%clk 0:02:10]}  Nc5 {[%clk 0:00:49]} 18. Bc2 {[%clk 0:02:05]}  Ba6 {[%clk 0:00:42]} 19. Rhf1 {[%clk 0:02:04]}  Qh4 {[%clk 0:00:40]} 20. Rf4 {[%clk 0:01:56]}  Qg5 {[%clk 0:00:34]} 21. Kb1 {[%clk 0:01:54]}  Qe7 {[%clk 0:00:29]} 22. Bxf5 {[%clk 0:01:47]}  Kh8 {[%clk 0:00:21]} 23. g3 {[%clk 0:01:37]}  Bxc4 {[%clk 0:00:20]} 24. Rdd4 {[%clk 0:01:27]}  Bb5 {[%clk 0:00:18]} 25. b4 {[%clk 0:01:25]}  Na4 {[%clk 0:00:16]} 26. Qxe6 {[%clk 0:01:23]}  Qg5 {[%clk 0:00:12]} 27. Qd5 {[%clk 0:01:16]}  Nc3+ {[%clk 0:00:10]} 28. Kb2 {[%clk 0:01:14]}  Nxd5 {[%clk 0:00:10]} 29. Rxd5 {[%clk 0:01:15]}  Qf6+ {[%clk 0:00:10]} 30. Kb3 {[%clk 0:01:11]}  c6 {[%clk 0:00:09]} 31. Rd7 {[%clk 0:01:09]}  g6 {[%clk 0:00:09]} 32. Bg4 {[%clk 0:00:58]}  Qxf4 {[%clk 0:00:04]} 33. gxf4 {[%clk 0:00:57]}  Rxf4 {[%clk 0:00:04]} 34. Be6 {[%clk 0:00:55]}  Re4 {[%clk 0:00:03]} 35. Bf7 {[%clk 0:00:48]}  Re3+ {[%clk 0:00:03]} 36. Kb2 {[%clk 0:00:47]}  h5 {[%clk 0:00:03]} 37. Bb3 {[%clk 0:00:46]}  h4 {[%clk 0:00:03]} 38. Rxa7 {[%clk 0:00:45]}  g5 {[%clk 0:00:04]} 39. a4 {[%clk 0:00:45]}  Re2+ {[%clk 0:00:04]} 40. Kc3 {[%clk 0:00:43]}  Re3+ {[%clk 0:00:04]} 41. Kc2 {[%clk 0:00:43]}  Bd3+ {[%clk 0:00:03]} 42. Kd2 {[%clk 0:00:43]}  Rh3 {[%clk 0:00:04]} 43. Rb7 {[%clk 0:00:39]}  b5 {[%clk 0:00:04]} 44. a5 {[%clk 0:00:39]}  g4 {[%clk 0:00:03]} 45. a6 {[%clk 0:00:38]}  Be4 {[%clk 0:00:03]} 46. Re7 {[%clk 0:00:36]}  Rxh2+ {[%clk 0:00:01]} 47. Ke3 {[%clk 0:00:35]}  Bf3 {[%clk 0:00:01]} 48. a7 {[%clk 0:00:34]}  c5 {[%clk 0:00:01]} 49. bxc5 {[%clk 0:00:34]}  Re2+ {[%clk 0:00:02]} 50. Kd4 {[%clk 0:00:30]}  Rxe7 {[%clk 0:00:03]} 51. Bd5 {[%clk 0:00:29]}  Bxd5 {[%clk 0:00:02]} 52. Kxd5 {[%clk 0:00:29]}  Rxa7 {[%clk 0:00:03]} 53. Kc6 {[%clk 0:00:29]}  Ra8 {[%clk 0:00:03]} 54. Kxb5 {[%clk 0:00:29]}  Rc8 {[%clk 0:00:03]} 55. c6 {[%clk 0:00:29]}  g3 {[%clk 0:00:03]} 56. Kb6 {[%clk 0:00:29]}  g2 {[%clk 0:00:03]} 57. Kb7 {[%clk 0:00:28]}  Rxc6 {[%clk 0:00:04]} 58. Kxc6 {[%clk 0:00:24]}  g1=Q {[%clk 0:00:05]} 0-1


[Site "https://www.chess.com"]

[Event "Titled Tuesday Blitz August 08 Early 2023"]
[White "sasvathaa"]
[Black "Samarth J Rao"]
[BlackFideId "46652370"]
[WhiteElo "1965"]
[BlackElo "2170"]
[Result "1-0"]
[Round "8"]
[TimeControl "180+1"]
[Date "2023.08.08"]
[WhiteClock "0:00:57"]
[BlackClock "0:00:09"]
[Board "206"]

1. d4 {[%clk 0:03:00]}  e6 {[%clk 0:02:57]} 2. Nf3 {[%clk 0:02:58]}  d5 {[%clk 0:02:57]} 3. Bg5 {[%clk 0:02:58]}  Be7 {[%clk 0:02:55]} 4. Bf4 {[%clk 0:02:58]}  Bd6 {[%clk 0:02:52]} 5. Bxd6 {[%clk 0:02:54]}  Qxd6 {[%clk 0:02:50]} 6. c3 {[%clk 0:02:55]}  Nf6 {[%clk 0:02:47]} 7. Ne5 {[%clk 0:02:54]}  c5 {[%clk 0:02:44]} 8. e3 {[%clk 0:02:53]}  Nc6 {[%clk 0:02:40]} 9. Bb5 {[%clk 0:02:50]}  O-O {[%clk 0:02:38]} 10. Bxc6 {[%clk 0:02:49]}  bxc6 {[%clk 0:02:36]} 11. O-O {[%clk 0:02:49]}  cxd4 {[%clk 0:02:33]} 12. exd4 {[%clk 0:02:47]}  Ne4 {[%clk 0:02:32]} 13. Nd2 {[%clk 0:02:46]}  f5 {[%clk 0:02:28]} 14. Nxe4 {[%clk 0:02:45]}  fxe4 {[%clk 0:02:26]} 15. f3 {[%clk 0:02:45]}  exf3 {[%clk 0:02:25]} 16. Rxf3 {[%clk 0:02:45]}  Ba6 {[%clk 0:02:16]} 17. b3 {[%clk 0:02:26]}  c5 {[%clk 0:02:10]} 18. Qe1 {[%clk 0:02:15]}  cxd4 {[%clk 0:02:06]} 19. cxd4 {[%clk 0:02:14]}  Rxf3 {[%clk 0:02:03]} 20. Nxf3 {[%clk 0:02:13]}  Rf8 {[%clk 0:02:01]} 21. Rc1 {[%clk 0:02:13]}  Rf6 {[%clk 0:01:54]} 22. Rc5 {[%clk 0:02:06]}  h6 {[%clk 0:01:50]} 23. Qc1 {[%clk 0:02:03]}  Bd3 {[%clk 0:01:37]} 24. Qd2 {[%clk 0:01:56]}  Be4 {[%clk 0:01:30]} 25. Ne5 {[%clk 0:01:55]}  Rf5 {[%clk 0:01:21]} 26. Rc8+ {[%clk 0:01:53]}  Kh7 {[%clk 0:01:19]} 27. h3 {[%clk 0:01:48]}  Rg5 {[%clk 0:01:17]} 28. Nf7 {[%clk 0:01:43]}  Qg3 {[%clk 0:00:51]} 29. Nxg5+ {[%clk 0:01:41]}  hxg5 {[%clk 0:00:52]} 30. Rc3 {[%clk 0:01:38]}  Qd6 {[%clk 0:00:44]} 31. Qxg5 {[%clk 0:01:37]}  Qa6 {[%clk 0:00:38]} 32. Qh5+ {[%clk 0:01:36]}  Kg8 {[%clk 0:00:37]} 33. Qe8+ {[%clk 0:01:34]}  Kh7 {[%clk 0:00:36]} 34. Rc8 {[%clk 0:01:34]}  Qe2 {[%clk 0:00:27]} 35. Qg8+ {[%clk 0:01:29]}  Kh6 {[%clk 0:00:26]} 36. Qxe6+ {[%clk 0:01:28]}  Kh7 {[%clk 0:00:20]} 37. Qg8+ {[%clk 0:01:22]}  Kh6 {[%clk 0:00:19]} 38. Qh8+ {[%clk 0:01:22]}  Kg6 {[%clk 0:00:18]} 39. Rc6+ {[%clk 0:01:14]}  Kf7 {[%clk 0:00:15]} 40. Rc7+ {[%clk 0:01:13]}  Kg6 {[%clk 0:00:14]} 41. Qxg7+ {[%clk 0:01:13]}  Kh5 {[%clk 0:00:11]} 42. Qh8+ {[%clk 0:01:09]}  Kg5 {[%clk 0:00:11]} 43. Rg7+ {[%clk 0:01:07]}  Kf4 {[%clk 0:00:11]} 44. Qh6+ {[%clk 0:00:58]}  Kf5 {[%clk 0:00:09]} 45. Rf7# {[%clk 0:00:57]} 1-0


[Site "https://www.chess.com"]

[Event "Titled Tuesday Blitz August 08 Early 2023"]
[White "abelmat"]
[Black "Ghosh, Chanchal Kumer"]
[BlackFideId "10201858"]
[WhiteElo "1905"]
[BlackElo "2085"]
[Result "0-1"]
[Round "8"]
[TimeControl "180+1"]
[Date "2023.08.08"]
[WhiteClock "0:00:54"]
[BlackClock "0:01:44"]
[Board "209"]

1. d4 {[%clk 0:02:50]}  d5 {[%clk 0:02:59]} 2. c4 {[%clk 0:02:51]}  e6 {[%clk 0:03:00]} 3. Nf3 {[%clk 0:02:52]}  Nf6 {[%clk 0:03:01]} 4. Nc3 {[%clk 0:02:52]}  b6 {[%clk 0:03:00]} 5. cxd5 {[%clk 0:02:50]}  exd5 {[%clk 0:02:59]} 6. Bg5 {[%clk 0:02:47]}  Bb7 {[%clk 0:02:57]} 7. e3 {[%clk 0:02:47]}  Bd6 {[%clk 0:02:57]} 8. Bd3 {[%clk 0:02:48]}  a6 {[%clk 0:02:56]} 9. O-O {[%clk 0:02:48]}  h6 {[%clk 0:02:57]} 10. Rc1 {[%clk 0:02:49]}  hxg5 {[%clk 0:02:56]} 11. Ne5 {[%clk 0:02:45]}  Qe7 {[%clk 0:02:45]} 12. f4 {[%clk 0:02:44]}  gxf4 {[%clk 0:02:44]} 13. exf4 {[%clk 0:02:44]}  Ne4 {[%clk 0:02:43]} 14. Qg4 {[%clk 0:02:23]}  Nd7 {[%clk 0:02:35]} 15. Rce1 {[%clk 0:02:22]}  Ndf6 {[%clk 0:02:31]} 16. Qe2 {[%clk 0:02:13]}  g6 {[%clk 0:02:24]} 17. f5 {[%clk 0:01:59]}  Bxe5 {[%clk 0:02:20]} 18. dxe5 {[%clk 0:01:57]}  Qxe5 {[%clk 0:02:19]} 19. g3 {[%clk 0:01:53]}  gxf5 {[%clk 0:02:16]} 20. a4 {[%clk 0:01:31]}  Kf8 {[%clk 0:02:16]} 21. Qf3 {[%clk 0:01:23]}  Bc8 {[%clk 0:02:06]} 22. Ne2 {[%clk 0:01:19]}  Nd2 {[%clk 0:02:04]} 23. Qg2 {[%clk 0:01:03]}  Qe3+ {[%clk 0:02:00]} 24. Kh1 {[%clk 0:01:02]}  Qxd3 {[%clk 0:02:00]} 25. Nf4 {[%clk 0:00:54]}  Qd4 {[%clk 0:01:44]} 0-1


[Site "https://www.chess.com"]

[Event "Titled Tuesday Blitz August 08 Early 2023"]
[White "Andreikin, Dmitry"]
[Black "Lazavik, Denis"]
[WhiteFideId "4158814"]
[BlackFideId "13515110"]
[WhiteElo "3007"]
[BlackElo "3053"]
[Result "1/2-1/2"]
[Round "9"]
[TimeControl "180+1"]
[Date "2023.08.08"]
[WhiteClock "0:00:24"]
[BlackClock "0:00:19"]
[Board "3"]

1. d4 {[%clk 0:03:00]}  Nf6 {[%clk 0:03:00]} 2. c4 {[%clk 0:03:00]}  e6 {[%clk 0:03:00]} 3. Nf3 {[%clk 0:03:00]}  d5 {[%clk 0:03:01]} 4. Bg5 {[%clk 0:03:00]}  dxc4 {[%clk 0:03:00]} 5. e4 {[%clk 0:02:59]}  b5 {[%clk 0:02:59]} 6. a4 {[%clk 0:02:52]}  c6 {[%clk 0:02:54]} 7. Nc3 {[%clk 0:02:48]}  b4 {[%clk 0:02:44]} 8. Nb1 {[%clk 0:02:47]}  Be7 {[%clk 0:02:33]} 9. Bxf6 {[%clk 0:02:32]}  Bxf6 {[%clk 0:02:32]} 10. Bxc4 {[%clk 0:02:31]}  O-O {[%clk 0:02:27]} 11. O-O {[%clk 0:02:31]}  Bb7 {[%clk 0:02:21]} 12. e5 {[%clk 0:01:58]}  Be7 {[%clk 0:02:20]} 13. Qe2 {[%clk 0:01:40]}  c5 {[%clk 0:02:16]} 14. Rd1 {[%clk 0:01:40]}  cxd4 {[%clk 0:01:45]} 15. Nxd4 {[%clk 0:01:41]}  Qc7 {[%clk 0:01:45]} 16. Nd2 {[%clk 0:01:35]}  Nc6 {[%clk 0:01:43]} 17. Nxc6 {[%clk 0:01:30]}  Qxc6 {[%clk 0:01:43]} 18. Nf3 {[%clk 0:01:26]}  Rfd8 {[%clk 0:01:43]} 19. Bb5 {[%clk 0:01:23]}  Qc7 {[%clk 0:01:36]} 20. h3 {[%clk 0:01:11]}  g6 {[%clk 0:01:24]} 21. Rac1 {[%clk 0:01:03]}  Qb6 {[%clk 0:01:23]} 22. b3 {[%clk 0:00:59]}  Rac8 {[%clk 0:01:16]} 23. Bc4 {[%clk 0:00:56]}  Kg7 {[%clk 0:01:08]} 24. Rxd8 {[%clk 0:00:53]}  Rxd8 {[%clk 0:01:07]} 25. Rd1 {[%clk 0:00:53]}  Rxd1+ {[%clk 0:01:01]} 26. Qxd1 {[%clk 0:00:54]}  Bc5 {[%clk 0:01:01]} 27. Qd2 {[%clk 0:00:47]}  Qc7 {[%clk 0:00:58]} 28. Qf4 {[%clk 0:00:44]}  Be7 {[%clk 0:00:40]} 29. Ng5 {[%clk 0:00:37]}  Bd8 {[%clk 0:00:23]} 30. Ne4 {[%clk 0:00:27]}  Bxe4 {[%clk 0:00:23]} 31. Qxe4 {[%clk 0:00:27]}  Be7 {[%clk 0:00:23]} 32. g3 {[%clk 0:00:27]}  Bc5 {[%clk 0:00:23]} 33. Kg2 {[%clk 0:00:27]}  Qd7 {[%clk 0:00:23]} 34. Qd3 {[%clk 0:00:24]}  Qxd3 {[%clk 0:00:19]} 35. Bxd3 {[%clk 0:00:24]} 1/2-1/2


[Site "https://www.chess.com"]

[Event "Titled Tuesday Blitz August 08 Early 2023"]
[White "Fedoseev, Vladimir"]
[Black "Isanzhulov, Arystan"]
[WhiteFideId "24130737"]
[BlackFideId "13711644"]
[WhiteElo "3087"]
[BlackElo "2880"]
[Result "1-0"]
[Round "9"]
[TimeControl "180+1"]
[Date "2023.08.08"]
[WhiteClock "0:00:18"]
[BlackClock "0:00:05"]
[Board "6"]

1. Nf3 {[%clk 0:03:00]}  Nf6 {[%clk 0:02:58]} 2. g3 {[%clk 0:03:00]}  g6 {[%clk 0:02:59]} 3. Bg2 {[%clk 0:02:58]}  Bg7 {[%clk 0:03:00]} 4. O-O {[%clk 0:02:58]}  O-O {[%clk 0:03:00]} 5. d3 {[%clk 0:02:58]}  d6 {[%clk 0:03:00]} 6. e4 {[%clk 0:02:44]}  e5 {[%clk 0:03:00]} 7. Nc3 {[%clk 0:02:44]}  Nc6 {[%clk 0:02:56]} 8. h3 {[%clk 0:02:42]}  h6 {[%clk 0:02:56]} 9. Nh2 {[%clk 0:02:43]}  Nh5 {[%clk 0:02:46]} 10. Ng4 {[%clk 0:02:41]}  Kh7 {[%clk 0:02:38]} 11. Ne3 {[%clk 0:02:41]}  Nd4 {[%clk 0:02:32]} 12. a4 {[%clk 0:02:33]}  a5 {[%clk 0:02:31]} 13. Nb5 {[%clk 0:02:31]}  Ne6 {[%clk 0:02:23]} 14. Nf5 {[%clk 0:02:30]}  gxf5 {[%clk 0:02:11]} 15. Qxh5 {[%clk 0:02:27]}  f4 {[%clk 0:02:11]} 16. Nc3 {[%clk 0:02:14]}  c6 {[%clk 0:02:03]} 17. Ne2 {[%clk 0:02:12]}  Qg5 {[%clk 0:01:36]} 18. Qf3 {[%clk 0:02:06]}  Qg6 {[%clk 0:01:37]} 19. gxf4 {[%clk 0:02:01]}  exf4 {[%clk 0:01:37]} 20. Bxf4 {[%clk 0:01:57]}  Bxb2 {[%clk 0:01:32]} 21. Bxd6 {[%clk 0:01:41]}  Rg8 {[%clk 0:01:25]} 22. Qf5 {[%clk 0:01:07]}  Bxa1 {[%clk 0:01:20]} 23. Qxg6+ {[%clk 0:01:06]}  Rxg6 {[%clk 0:01:20]} 24. Rxa1 {[%clk 0:01:05]}  Ng5 {[%clk 0:01:19]} 25. Bg3 {[%clk 0:01:03]}  Nxh3+ {[%clk 0:01:19]} 26. Kh2 {[%clk 0:00:55]}  Ng5 {[%clk 0:01:19]} 27. f4 {[%clk 0:00:55]}  Ne6 {[%clk 0:01:12]} 28. f5 {[%clk 0:00:54]}  Rg5 {[%clk 0:01:13]} 29. fxe6 {[%clk 0:00:52]}  Bxe6 {[%clk 0:01:13]} 30. Bf4 {[%clk 0:00:45]}  Rh5+ {[%clk 0:01:11]} 31. Kg1 {[%clk 0:00:44]}  Rg8 {[%clk 0:01:12]} 32. Kf2 {[%clk 0:00:45]}  Bd7 {[%clk 0:00:40]} 33. c4 {[%clk 0:00:38]}  Bg4 {[%clk 0:00:25]} 34. Ng3 {[%clk 0:00:37]}  Rh4 {[%clk 0:00:26]} 35. Bd6 {[%clk 0:00:36]}  Be6 {[%clk 0:00:25]} 36. Rb1 {[%clk 0:00:31]}  Rd8 {[%clk 0:00:16]} 37. Be7 {[%clk 0:00:29]}  Rf4+ {[%clk 0:00:15]} 38. Ke3 {[%clk 0:00:29]}  Rg4 {[%clk 0:00:12]} 39. Bxd8 {[%clk 0:00:29]}  Rxg3+ {[%clk 0:00:13]} 40. Bf3 {[%clk 0:00:28]}  Bg4 {[%clk 0:00:11]} 41. Rf1 {[%clk 0:00:29]}  Bh3 {[%clk 0:00:11]} 42. Rf2 {[%clk 0:00:28]}  Rg1 {[%clk 0:00:11]} 43. Bxa5 {[%clk 0:00:26]}  Ra1 {[%clk 0:00:11]} 44. Rh2 {[%clk 0:00:23]}  Be6 {[%clk 0:00:10]} 45. Bc7 {[%clk 0:00:23]}  Rxa4 {[%clk 0:00:10]} 46. Bf4 {[%clk 0:00:24]}  Ra3 {[%clk 0:00:10]} 47. Rxh6+ {[%clk 0:00:24]}  Kg7 {[%clk 0:00:11]} 48. Kd4 {[%clk 0:00:22]}  c5+ {[%clk 0:00:11]} 49. Kxc5 {[%clk 0:00:18]}  Rxd3 {[%clk 0:00:11]} 50. Be2 {[%clk 0:00:18]}  Rc3 {[%clk 0:00:11]} 51. Be5+ {[%clk 0:00:17]}  Kxh6 {[%clk 0:00:10]} 52. Bxc3 {[%clk 0:00:18]}  Bd7 {[%clk 0:00:09]} 53. Kd6 {[%clk 0:00:17]}  Bc6 {[%clk 0:00:10]} 54. e5 {[%clk 0:00:17]}  Kg5 {[%clk 0:00:11]} 55. c5 {[%clk 0:00:18]}  Kf5 {[%clk 0:00:05]} 56. Bc4 {[%clk 0:00:18]} 1-0


[Site "https://www.chess.com"]

[Event "Titled Tuesday Blitz August 08 Early 2023"]
[White "Mitrabha, Guha"]
[Black "Kramnik, Vladimir"]
[WhiteFideId "5057000"]
[BlackFideId "4101588"]
[WhiteElo "2832"]
[BlackElo "2995"]
[Result "1-0"]
[Round "9"]
[TimeControl "180+1"]
[Date "2023.08.08"]
[WhiteClock "0:00:54"]
[BlackClock "0:00:00"]
[Board "10"]

1. Nf3 {[%clk 0:02:58]}  c5 {[%clk 0:01:38]} 2. g3 {[%clk 0:02:57]}  Nf6 {[%clk 0:01:38]} 3. Bg2 {[%clk 0:02:57]}  g6 {[%clk 0:01:39]} 4. b3 {[%clk 0:02:57]}  Bg7 {[%clk 0:01:39]} 5. Bb2 {[%clk 0:02:58]}  O-O {[%clk 0:01:39]} 6. c4 {[%clk 0:02:58]}  Nc6 {[%clk 0:01:39]} 7. O-O {[%clk 0:02:59]}  d6 {[%clk 0:01:39]} 8. d4 {[%clk 0:02:57]}  Ne4 {[%clk 0:01:38]} 9. Nbd2 {[%clk 0:02:51]}  Bf5 {[%clk 0:01:37]} 10. e3 {[%clk 0:02:47]}  cxd4 {[%clk 0:01:34]} 11. Nxd4 {[%clk 0:02:41]}  Nxd2 {[%clk 0:01:31]} 12. Qxd2 {[%clk 0:02:40]}  Bd7 {[%clk 0:01:30]} 13. Rac1 {[%clk 0:02:35]}  Rc8 {[%clk 0:01:28]} 14. Rfd1 {[%clk 0:02:34]}  a6 {[%clk 0:01:28]} 15. h4 {[%clk 0:02:32]}  Nxd4 {[%clk 0:01:27]} 16. Bxd4 {[%clk 0:02:32]}  Bc6 {[%clk 0:01:27]} 17. Bxg7 {[%clk 0:02:31]}  Kxg7 {[%clk 0:01:27]} 18. Qb2+ {[%clk 0:02:31]}  f6 {[%clk 0:01:26]} 19. Bh3 {[%clk 0:02:25]}  Bf3 {[%clk 0:01:22]} 20. Rd4 {[%clk 0:02:21]}  Rc5 {[%clk 0:01:22]} 21. b4 {[%clk 0:02:18]}  Re5 {[%clk 0:01:16]} 22. c5 {[%clk 0:02:16]}  d5 {[%clk 0:01:14]} 23. a4 {[%clk 0:02:11]}  g5 {[%clk 0:01:02]} 24. b5 {[%clk 0:02:10]}  axb5 {[%clk 0:01:00]} 25. axb5 {[%clk 0:02:10]}  Be4 {[%clk 0:00:52]} 26. hxg5 {[%clk 0:02:04]}  Rxg5 {[%clk 0:00:52]} 27. Bg2 {[%clk 0:01:58]}  Bxg2 {[%clk 0:00:49]} 28. Kxg2 {[%clk 0:01:59]}  e6 {[%clk 0:00:34]} 29. c6 {[%clk 0:01:53]}  bxc6 {[%clk 0:00:34]} 30. bxc6 {[%clk 0:01:53]}  Rf7 {[%clk 0:00:33]} 31. Rb4 {[%clk 0:01:51]}  d4 {[%clk 0:00:20]} 32. Rxd4 {[%clk 0:01:46]}  Qc8 {[%clk 0:00:20]} 33. Qb6 {[%clk 0:01:44]}  Qc7 {[%clk 0:00:16]} 34. Qxc7 {[%clk 0:01:15]}  Rxc7 {[%clk 0:00:17]} 35. Rb4 {[%clk 0:01:15]}  Kg6 {[%clk 0:00:14]} 36. Rb7 {[%clk 0:01:15]}  Rxb7 {[%clk 0:00:13]} 37. cxb7 {[%clk 0:01:16]}  Rb5 {[%clk 0:00:13]} 38. Rc7 {[%clk 0:01:17]}  h5 {[%clk 0:00:13]} 39. Kf3 {[%clk 0:01:16]}  Rb4 {[%clk 0:00:10]} 40. Ke2 {[%clk 0:01:16]}  Kf5 {[%clk 0:00:08]} 41. f3 {[%clk 0:01:14]}  e5 {[%clk 0:00:07]} 42. Re7 {[%clk 0:01:14]}  Rb3 {[%clk 0:00:06]} 43. Kd2 {[%clk 0:01:11]}  e4 {[%clk 0:00:06]} 44. fxe4+ {[%clk 0:01:02]}  Kg4 {[%clk 0:00:06]} 45. Kc2 {[%clk 0:01:02]}  Rb5 {[%clk 0:00:04]} 46. Rg7+ {[%clk 0:01:00]}  Kf3 {[%clk 0:00:04]} 47. Kd3 {[%clk 0:01:00]}  Rb4 {[%clk 0:00:04]} 48. Kc3 {[%clk 0:01:00]}  Rb6 {[%clk 0:00:03]} 49. Kd4 {[%clk 0:01:01]}  Rb5 {[%clk 0:00:02]} 50. Kc4 {[%clk 0:01:01]}  Rb1 {[%clk 0:00:02]} 51. Kd5 {[%clk 0:01:00]}  Kxe3 {[%clk 0:00:02]} 52. Re7 {[%clk 0:00:55]}  Rd1+ {[%clk 0:00:00]} 53. Ke6 {[%clk 0:00:54]} 1-0


[Site "https://www.chess.com"]

[Event "Titled Tuesday Blitz August 08 Early 2023"]
[White "Baskakov, Egor"]
[Black "Yaran, Siar"]
[WhiteFideId "24197866"]
[BlackFideId "6323006"]
[WhiteElo "2887"]
[BlackElo "2714"]
[Result "1/2-1/2"]
[Round "9"]
[TimeControl "180+1"]
[Date "2023.08.08"]
[WhiteClock "0:01:12"]
[BlackClock "0:00:19"]
[Board "11"]

1. e4 {[%clk 0:03:00]}  e5 {[%clk 0:02:59]} 2. Nc3 {[%clk 0:03:01]}  Nc6 {[%clk 0:02:59]} 3. g3 {[%clk 0:03:01]}  f5 {[%clk 0:02:58]} 4. d3 {[%clk 0:03:01]}  Nf6 {[%clk 0:02:52]} 5. Bg2 {[%clk 0:03:01]}  fxe4 {[%clk 0:02:50]} 6. dxe4 {[%clk 0:03:01]}  Bc5 {[%clk 0:02:50]} 7. h3 {[%clk 0:03:00]}  O-O {[%clk 0:02:46]} 8. Nge2 {[%clk 0:02:59]}  d6 {[%clk 0:02:35]} 9. Be3 {[%clk 0:02:50]}  Bxe3 {[%clk 0:02:34]} 10. fxe3 {[%clk 0:02:50]}  Be6 {[%clk 0:02:29]} 11. Qd2 {[%clk 0:02:48]}  a5 {[%clk 0:02:19]} 12. Nd5 {[%clk 0:02:36]}  Ne7 {[%clk 0:01:59]} 13. O-O {[%clk 0:02:33]}  Nexd5 {[%clk 0:01:49]} 14. exd5 {[%clk 0:02:34]}  Bd7 {[%clk 0:01:50]} 15. Nc3 {[%clk 0:02:27]}  Qe8 {[%clk 0:01:47]} 16. g4 {[%clk 0:02:21]}  Qg6 {[%clk 0:01:45]} 17. Qd3 {[%clk 0:02:14]}  Qg5 {[%clk 0:01:38]} 18. Ne4 {[%clk 0:01:58]}  Nxe4 {[%clk 0:01:36]} 19. Bxe4 {[%clk 0:01:57]}  g6 {[%clk 0:01:36]} 20. Rxf8+ {[%clk 0:01:49]}  Rxf8 {[%clk 0:01:34]} 21. Rf1 {[%clk 0:01:49]}  Rxf1+ {[%clk 0:01:25]} 22. Kxf1 {[%clk 0:01:50]}  Qh4 {[%clk 0:01:24]} 23. Bg2 {[%clk 0:01:37]}  Qg3 {[%clk 0:01:20]} 24. Qc3 {[%clk 0:01:24]}  Bb5+ {[%clk 0:01:10]} 25. Kg1 {[%clk 0:01:23]}  Be2 {[%clk 0:01:08]} 26. Qxc7 {[%clk 0:01:16]}  Qxe3+ {[%clk 0:00:38]} 27. Kh1 {[%clk 0:01:14]}  Qc1+ {[%clk 0:00:36]} 28. Kh2 {[%clk 0:01:13]}  Qf4+ {[%clk 0:00:35]} 29. Kh1 {[%clk 0:01:13]}  Qc1+ {[%clk 0:00:20]} 30. Kh2 {[%clk 0:01:12]}  Qf4+ {[%clk 0:00:20]} 31. Kh1 {[%clk 0:01:12]}  Qc1+ {[%clk 0:00:19]} 1/2-1/2


[Site "https://www.chess.com"]